lending/lending_fUSD_20260102
["ID","MTS","AMOUNT","RATE_DAILY","PERIOD"]
[400340017,1767393001295,1200.0,0.00017999,2]
[400340018,1767393002295,550.0,0.00017999,2]
[400340019,1767393006400,500.88942857,0.00016973,2]
[400340020,1767393007085,500.0,0.00016973,2]
[400340021,1767393007149,1000.0,0.00017521,2]
[400340022,1767393016623,1632.3679,0.000179,2]
[400340023,1767393024502,834.03411572,0.00017968,2]
[400340024,1767393024755,-12.24704172,0.00018,2]
[400340025,1767393024778,-163.15382115,0.00018,2]
[400340039,1767393032033,-136.84617885,0.00018,2]
[400340040,1767393032044,-527.79189934,0.00018,2]
[400340042,1767393032057,-120128.44685487,0.00018,2]
[400340043,1767393032145,-2286.90336051,0.00018,2]
[400340044,1767393032156,-2127.37987507,0.00018,2]
[400340045,1767393032206,-3075.51993711,0.00018,2]
[400340046,1767393032218,-10957.99854066,0.00018,2]
[400340047,1767393032230,-3592.19999998,0.00018,2]
[400340048,1767393032241,-879.45743612,0.00018,2]
[400340084,1767393038106,-252.20002668,0.00018,2]
[400340085,1767393038118,-1295.00000005,0.00018,2]
[400340086,1767393038221,-6075.94110169,0.00018,2]
[400340087,1767393038283,-3379.8,0.00018,2]
[400340088,1767393038295,-966.23062583,0.00018,2]
[400340089,1767393038310,-2478.40702271,0.00018,2]
[400340170,1767393041435,-1.7e-07,0.00018,2]
[400340171,1767393041446,-1726.49470411,0.00018,2]
[400340172,1767393041458,-302.1649995,0.00018,2]
[400340173,1767393041470,-3761.56668137,0.00018,2]
[400340174,1767393041482,-15918.08659907,0.00018,2]
[400340175,1767393041493,-2243.95,0.00018,2]
[400340176,1767393041505,-5863.50612559,0.00018,2]
[400340177,1767393041518,-453628.45151793,0.00018,2]
[400340178,1767393041527,-469.5898619,0.00018,2]
[400340179,1767393041537,-4745.2671281,0.00018,2]
[400340180,1767393041547,-659579.12192447,0.00018,2]
[400340181,1767393041556,-1500.0,0.00018068,2]
[400340182,1767393041566,-2000.0,0.00018616,2]
[400340183,1767393041575,-372.4482038,0.00018642,2]
[400340184,1767393041584,-151.4,0.000188,2]
[400340185,1767393041594,-152.56104171,0.000189,2]
[400340186,1767393041603,-5156.04492347,0.00019,2]
[400340187,1767393041613,-935.0,0.00019079,2]
[400340188,1767393041623,-200.2041015,0.00019082,2]
[400340189,1767393041633,-917.6062809,0.00019164,2]
[400340190,1767393041642,-150.0,0.00019178,2]
[400340191,1767393041651,-159.96945707,0.00019178,2]
[400340192,1767393041660,-150.0,0.00019178,2]
[400340193,1767393041671,-4420.7714501,0.0001931,2]
[400340194,1767393041679,-986.4074416,0.00019602,2]
[400340195,1767393041689,-1680.0,0.00019639,2]
[400340196,1767393041698,-420.0,0.00019639,2]
[400340197,1767393041707,-420.0,0.00019639,2]
[400340198,1767393041717,-250.0,0.00019726,2]
[400340199,1767393041726,-200.0,0.00019726,2]
[400340200,1767393041735,-618.03155836,0.00019726,2]
[400340201,1767393041745,-1680.0,0.00019735,2]
[400340202,1767393041754,-300.0,0.00019799,2]
[400340203,1767393041763,-193.0,0.00019799,2]
[400340204,1767393041772,-250.0,0.00019799,2]
[400340205,1767393041782,-300.0,0.00019799,2]
[400340206,1767393041791,-300.0,0.00019799,2]
[400340207,1767393041800,-469.5898619,0.00019976,2]
[400340208,1767393041809,-4745.2671281,0.00019976,2]
[400340209,1767393041819,-1042.69727334,0.0002,2]
[400340210,1767393041828,-2857.41968692,0.0002,2]
[400340211,1767393041837,-150.0,0.0002,20]
[400340212,1767393041846,-150.0,0.0002,2]
[400340213,1767393041855,-150.0,0.0002,2]
[400340214,1767393041864,-194.84702052,0.0002,2]
[400340215,1767393041873,-76.06992488,0.00020187,2]
[400340216,1767393041882,-1589.0,0.00020231,2]
[400340217,1767393041891,-260.73690508,0.00020274,2]
[400340218,1767393041900,-151.4,0.00020671,2]
[400340219,1767393041910,-30104.31041512,0.00020681,2]
[400340220,1767393041919,-22347.62212765,0.00020681,2]
[400340221,1767393041928,-999.0,0.0002089,3]
[400340222,1767393041937,-1190.59549896,0.00021,2]
[400340223,1767393041948,-196.51768733,0.00021,2]
[400340224,1767393041959,-2351.0,0.00021428,2]
[400340225,1767393041968,-587.0,0.00021428,2]
[400340226,1767393041977,-587.0,0.00021428,2]
[400340227,1767393041987,-1613.0,0.00021437,2]
[400340228,1767393041997,-221.65844248,0.000215,2]
[400340229,1767393042007,-2351.0,0.00021639,2]
[400340230,1767393042022,-469.5898619,0.00021952,2]
[400340231,1767393042032,-4745.2671281,0.00021952,2]
[400340232,1767393042042,-163.53,0.00022,2]
[400340233,1767393042052,-834.03411566,0.00022129,2]
[400340234,1767393042061,-522.05580463,0.0002271,2]
[400340235,1767393042071,-1969.86488294,0.00023,2]
[400340236,1767393042080,-1005.61418261,0.00023,2]
[400340237,1767393042088,-157.16740029,0.000232,2]
[400340238,1767393042098,-2037.0,0.00023381,2]
[400340239,1767393042107,-823.0,0.00023381,2]
[400340240,1767393042116,-823.0,0.00023381,2]
[400340241,1767393042126,-30104.31041512,0.00023463,2]
[400340242,1767393042135,-22347.62212765,0.00023463,2]
[400340243,1767393042145,-200.0,0.000235,2]
[400340244,1767393042155,-3292.0,0.00023727,2]
[400340245,1767393042164,-469.5898619,0.00023929,2]
[400340246,1767393042173,-4745.2671281,0.00023929,2]
[400340247,1767393042182,-420.97824936,0.0002421,2]
[400340248,1767393042191,-3687.70928166,0.0002421,2]
[400340249,1767393042201,-1000.0,0.00024658,2]
[400340250,1767393042210,-277.88,0.000247,2]
[400340251,1767393042219,-35446.669451,0.000248,3]
[400340252,1767393042228,-151.4,0.0002489,2]
[400340253,1767393042237,-151.4,0.0002489,2]
[400340254,1767393042247,-303.48626208,0.00024897,2]
[400340255,1767393042256,-282948.158222,0.000249,3]
[400340256,1767393042265,-151.0,0.00024997,7]
[400340257,1767393042274,-1109.2215266,0.00025,2]
[400340258,1767393042283,-206.65908382,0.00025,2]
[400340259,1767393042292,-1777.42208836,0.00025,2]
[400340260,1767393042303,-18908.96344835,0.00025,2]
[400340261,1767393042322,-368.1311572,0.00025,2]
[400340262,1767393042332,-360.0,0.00025,2]
[400340263,1767393042342,-608.40867796,0.00025,2]
[400340264,1767393042351,-3031.75609184,0.00025,2]
[400340265,1767393042361,-1060.08606139,0.00025,2]
[400340266,1767393042370,-166.61332554,0.00025,2]
[400340267,1767393042379,-250.0,0.00025199,2]
[400340268,1767393042391,-1152.0,0.00025511,2]
[400340269,1767393042401,-300.0,0.00025511,2]
[400340270,1767393042410,-14503.95,0.00025769,2]
[400340271,1767393042420,-2052.14986574,0.00026,2]
[400340272,1767393042430,-215.65310949,0.00026,2]
[400340273,1767393042439,-162.32562919,0.00026,2]
[400340274,1767393042449,-4609.0,0.00026016,2]
[400340275,1767393042459,-151.4,0.00026234,2]
[400340276,1767393042470,-30104.31041512,0.00026244,2]
[400340277,1767393042480,-22347.62212765,0.00026244,2]
[400340278,1767393042489,-834.03411566,0.0002629,2]
[400340279,1767393042499,-264.75,0.00026676,2]
[400340280,1767393042509,-811.69,0.00027145,2]
[400340281,1767393042519,-464.0,0.00027835,2]
[400340282,1767393042528,-11930.903737,0.00028,60]
[400340283,1767393042538,-811.69,0.00028163,2]
[400340284,1767393042547,-6453.0,0.00028526,2]
[400340285,1767393042556,-6954.2,0.00028846,2]
[400340286,1767393042566,-9999.99,0.00029009,2]
[400340287,1767393042575,-150.99,0.00029009,2]
[400340288,1767393042585,-30104.31041512,0.00029026,2]
[400340289,1767393042594,-22347.62212765,0.00029026,2]
[400340290,1767393042605,-811.69,0.00029181,2]
[400340291,1767393042614,-255.87,0.00029221,30]
[400340292,1767393042624,-7045.59,0.00029221,10]
[400340293,1767393042634,-660.52,0.00029341,2]
[400340294,1767393042643,-482.01,0.00029341,2]
[400340295,1767393042653,-482.01,0.00029341,2]
[400340296,1767393042662,-660.52,0.00029341,2]
[400340297,1767393042671,-660.52,0.00029341,2]
[400340298,1767393042680,-482.01,0.00029341,2]
[400340299,1767393042690,-482.01,0.00029341,2]
[400340300,1767393042699,-660.52,0.00029341,2]
[400340301,1767393042709,-660.52,0.00029341,2]
[400340302,1767393042719,-963.84,0.00029341,2]
[400340303,1767393042728,-660.52,0.00029341,2]
[400340304,1767393042737,-341.76850629,0.00029422,2]
[400340305,1767393042747,-1222.64,0.00029478,2]
[400340306,1767393042756,-178.8,0.00029478,2]
[400340307,1767393042765,-178.8,0.00029478,2]
[400340308,1767393042774,-1222.64,0.00029478,2]
[400340309,1767393042783,-1222.64,0.00029478,2]
[400340310,1767393042792,-177.98,0.00029478,2]
[400340311,1767393042801,-1222.64,0.00029478,2]
[400340312,1767393042811,-150.0,0.00029478,2]
[400340313,1767393042820,-1222.64,0.00029478,2]
[400340314,1767393042829,-1222.64,0.00029478,2]
[400340315,1767393042838,-150.0,0.00029478,2]
[400340316,1767393042847,-151.4,0.00029595,2]
[400340317,1767393042856,-236.2643,0.00029605,2]
[400340318,1767393042866,-21882.0747,0.00029605,2]
[400340320,1767393042875,-10471.95,0.00029641,2]
[400340321,1767393042884,-151.0,0.00029697,2]
[400340322,1767393042894,-151.0,0.00029697,2]
[400340323,1767393042903,-151.0,0.00029697,2]
[400340324,1767393042913,-151.0,0.00029697,2]
[400340325,1767393042923,-151.0,0.00029697,2]
[400340326,1767393042932,-151.0,0.00029697,2]
[400340327,1767393042941,-151.0,0.00029697,2]
[400340328,1767393042951,-151.0,0.00029697,2]
[400340329,1767393042961,-151.0,0.00029697,2]
[400340330,1767393042970,-151.0,0.00029697,2]
[400340331,1767393042980,-151.0,0.00029697,2]
[400340332,1767393042988,-151.0,0.00029697,2]
[400340333,1767393042997,-151.0,0.00029697,2]
[400340334,1767393043007,-151.0,0.00029697,2]
[400340335,1767393043021,-151.0,0.00029697,2]
[400340336,1767393043031,-151.0,0.00029697,2]
[400340337,1767393043040,-151.0,0.00029697,2]
[400340338,1767393043049,-151.0,0.00029697,2]
[400340339,1767393043059,-236.7016539,0.00029697,2]
[400340340,1767393043068,-151.0,0.00029702,7]
[400340341,1767393043077,-500.0,0.00029704,2]
[400340342,1767393043087,-500.0,0.00029704,2]
[400340343,1767393043098,-500.0,0.00029704,2]
[400340344,1767393043107,-500.0,0.00029704,2]
[400340345,1767393043116,-276.78,0.00029704,14]
[400340346,1767393043125,-500.0,0.00029704,2]
[400340347,1767393043134,-500.0,0.00029704,2]
[400340348,1767393043143,-500.0,0.00029704,2]
[400340349,1767393043152,-500.0,0.00029704,2]
[400340350,1767393043161,-500.0,0.00029704,2]
[400340351,1767393043171,-500.0,0.00029704,2]
[400340352,1767393043180,-500.0,0.00029704,2]
[400340353,1767393043189,-500.0,0.00029704,2]
[400340354,1767393043198,-500.0,0.00029704,2]
[400340355,1767393043209,-500.0,0.00029704,2]
[400340356,1767393043218,-500.0,0.00029704,2]
[400340357,1767393043227,-500.0,0.00029704,2]
[400340358,1767393043236,-500.0,0.00029704,2]
[400340359,1767393043248,-182.78986537,0.00029704,2]
[400340360,1767393043257,-1202.62,0.00029704,23]
[400340361,1767393043267,-1061.80560835,0.00029704,15]
[400340362,1767393043276,-1393.7,0.00029705,2]
[400340363,1767393043285,-151.0,0.00029712,7]
[400340364,1767393043294,-300.0,0.00029714,10]
[400340365,1767393043304,-666.0,0.00029714,10]
[400340366,1767393043313,-276.78,0.00029978,14]
[400340367,1767393043322,-236.33877178,0.0002999,2]
[400340368,1767393043331,-4699.54911004,0.0003,2]
[400340369,1767393043340,-4135.62835594,0.0003,2]
[400340370,1767393043349,-1000.0,0.0003,3]
[400340371,1767393043358,-1810.19165207,0.0003,2]
[400340372,1767393043367,-439.48906919,0.0003,2]
[400340373,1767393043376,-162.37111533,0.0003,2]
[400340374,1767393043385,-151.86678879,0.0003,2]
[400340375,1767393043395,-1069.28909373,0.0003013,2]
[400340376,1767393043404,-3543.260445,0.0003013,2]
[400340377,1767393043413,-631.47646975,0.0003013,2]
[400340378,1767393043422,-5038.87649041,0.0003013,2]
[400340379,1767393043432,-200.8884006,0.0003013,2]
[400340380,1767393043442,-1219.50688971,0.0003013,2]
[400340381,1767393043452,-811.69,0.00030199,2]
[400340382,1767393043462,-1000.0,0.000302,2]
[400340383,1767393043472,-276.78,0.00030252,14]
[400340384,1767393043481,-300.0,0.00030299,10]
[400340385,1767393043491,-150.0,0.000303,2]
[400340386,1767393043500,-151.59,0.000303,2]
[400340387,1767393043509,-660.52,0.000303,2]
[400340388,1767393043519,-1222.64,0.000303,2]
[400340389,1767393043529,-1222.64,0.000303,2]
[400340390,1767393043538,-660.52,0.000303,2]
[400340391,1767393043548,-1222.64,0.000303,2]
[400340392,1767393043557,-660.52,0.000303,2]
[400340393,1767393043567,-1222.64,0.000303,2]
[400340394,1767393043576,-660.52,0.000303,2]
[400340395,1767393043586,-660.52,0.000303,2]
[400340396,1767393043595,-1222.64,0.000303,2]
[400340397,1767393043605,-1222.64,0.000303,2]
[400340398,1767393043614,-660.52,0.000303,2]
[400340399,1767393043624,-1222.64,0.000303,2]
[400340400,1767393043634,-660.52,0.000303,2]
[400340401,1767393043644,-683.55,0.000303,2]
[400340402,1767393043653,-657.29,0.000303,2]
[400340403,1767393043663,-834.03411566,0.00030451,2]
[400340404,1767393043672,-276.78,0.00030526,14]
[400340405,1767393043682,-276.82,0.000308,14]
[400340406,1767393043692,-2601.15838654,0.0003084,2]
[400340407,1767393043701,-150.0,0.00030973,2]
[400340408,1767393043710,-910.5,0.00030975,2]
[400340409,1767393043720,-166.66,0.00030992,2]
[400340410,1767393043730,-300.0,0.00031085,10]
[400340411,1767393043739,-811.69,0.00031216,2]
[400340412,1767393043749,-9035.0,0.00031278,3]
[400340413,1767393043758,-170.22389467,0.000314,30]
[400340414,1767393043767,-588.03,0.00031447,2]
[400340415,1767393043776,-150.0,0.000315,2]
[400340416,1767393043786,-30104.31041512,0.00031807,2]
[400340417,1767393043795,-22347.62212765,0.00031807,2]
[400340418,1767393043804,-166.66,0.00032015,2]
[400340419,1767393043813,-500.0,0.0003216,2]
[400340420,1767393043822,-890.34983316,0.000323,2]
[400340421,1767393043832,-160.51,0.00032544,2]
[400340422,1767393043841,-151.87532607,0.00032565,2]
[400340423,1767393043850,-326.6670978,0.00032566,10]
[400340424,1767393043859,-4808.94363595,0.000328,2]
[400340425,1767393043868,-169.51031729,0.000329,2]
[400340426,1767393043878,-1907.90335055,0.00033,2]
[400340427,1767393043887,-152.90178293,0.00033,2]
[400340428,1767393043896,-166.66,0.00033038,2]
[400340429,1767393043905,-264.75,0.00033165,2]
[400340430,1767393043914,-1206.25834594,0.000335,2]
[400340431,1767393043924,-255.87,0.00033547,30]
[400340432,1767393043933,-160.51,0.00033914,2]
[400340433,1767393043942,-303.48626207,0.00033915,2]
[400340434,1767393043951,-325.73358732,0.00034,2]
[400340435,1767393043961,-166.66,0.00034061,2]
[400340436,1767393043971,-12649.0,0.00034295,3]
[400340437,1767393043980,-1724.29733764,0.0003449,2]
[400340438,1767393043990,-151.4,0.00034579,2]
[400340439,1767393044000,-30104.31041512,0.00034589,2]
[400340440,1767393044010,-22347.62212765,0.00034589,2]
[400340441,1767393044024,-277.88,0.00034687,2]
[400340443,1767393044033,-1909.75302216,0.00035,2]
[400340444,1767393044044,-160.70938277,0.00035,2]
[400340446,1767393044055,-2303.18208645,0.00035047,2]
[400340448,1767393044065,-3984.39616337,0.00035047,2]
[400340449,1767393044075,-796.2658854,0.00035047,2]
[400340450,1767393044226,-500.0,0.00035048,20]
[400340451,1767393044256,-166.66,0.00035084,2]
[400340452,1767393044265,-482.01,0.00035341,2]
[400340453,1767393044274,-660.52,0.00035341,2]
[400340454,1767393044283,-1124.22,0.00035478,2]
[400340455,1767393044293,-178.8,0.00035478,2]
[400340456,1767393044303,-1222.64,0.00035478,2]
[400340457,1767393044312,-150.0,0.00035478,2]
[400340458,1767393044321,-465.64,0.00035478,2]
[400340459,1767393044330,-150.0,0.00035478,2]
[400340460,1767393044339,-171.08,0.00035478,2]
[400340461,1767393044348,-206.54102731,0.00035616,32]
[400340462,1767393044357,-171.08,0.00035678,2]
[400340463,1767393044366,-171.08,0.00035678,2]
[400340464,1767393044375,-171.08,0.00035678,2]
[400340465,1767393044384,-171.08,0.00035678,2]
[400340466,1767393044393,-171.08,0.00035678,2]
[400340467,1767393044401,-171.08,0.00035678,2]
[400340468,1767393044411,-215.78,0.00035764,2]
[400340469,1767393044420,-265.29,0.000358,14]
[400340470,1767393044430,-1000.0,0.00035876,2]
[400340471,1767393044439,-277.16438568,0.00036,2]
[400340472,1767393044448,-2500.0,0.00036091,2]
[400340473,1767393044458,-726.24,0.00036106,2]
[400340474,1767393044467,-166.66,0.00036107,2]
[400340475,1767393044476,-5000.0,0.00036181,2]
[400340476,1767393044486,-2558.0,0.00036264,2]
[400340477,1767393044495,-5000.0,0.00036284,2]
[400340478,1767393044504,-171.08,0.000363,2]
[400340479,1767393044514,-171.08,0.000363,2]
[400340480,1767393044524,-170.48,0.000363,2]
[400340481,1767393044534,-5000.0,0.00036346,2]
[400340482,1767393044543,-5000.0,0.00036373,2]
[400340483,1767393044552,-4495.11,0.00036402,2]
[400340484,1767393044562,-5000.0,0.00036425,2]
[400340485,1767393044572,-2500.0,0.00036557,2]
[400340486,1767393044583,-662.57,0.0003656,2]
[400340487,1767393044592,-5000.0,0.00036681,2]
[400340488,1767393044601,-3643.48,0.00036716,2]
[400340489,1767393044611,-1674.33,0.00036746,2]
[400340490,1767393044620,-1603.40235966,0.000368,2]
[400340491,1767393044629,-1946.13520574,0.000368,2]
[400340492,1767393044639,-5000.0,0.00036808,2]
[400340493,1767393044649,-5000.0,0.0003699,2]
[400340494,1767393044658,-164.91727114,0.00037,2]
[400340495,1767393044668,-30104.31041512,0.0003737,2]
[400340496,1767393044677,-22347.62212765,0.0003737,2]
[400340497,1767393044687,-4312.46323591,0.0003759,2]
[400340498,1767393044696,-17709.0,0.00037603,3]
[400340499,1767393044705,-255.87,0.00037873,30]
[400340500,1767393044715,-201.17935308,0.0003788,2]
[400340501,1767393044725,-277.88,0.00037973,2]
[400340502,1767393044734,-151.87532607,0.00037992,2]
[400340503,1767393044744,-651.0,0.00038052,2]
[400340504,1767393044754,-651.0,0.00038062,2]
[400340505,1767393044764,-5524.0,0.000382,3]
[400340506,1767393044774,-151.0,0.00038356,15]
[400340507,1767393044784,-651.0,0.00038419,2]
[400340508,1767393044794,-151.4,0.00038456,2]
[400340509,1767393044804,-653.0,0.00038458,2]
[400340510,1767393044815,-150.0,0.00038466,7]
[400340511,1767393044827,-162.80268362,0.00038466,7]
[400340512,1767393044837,-150.0,0.00038466,7]
[400340513,1767393044847,-150.0,0.00038466,7]
[400340514,1767393044857,-150.0,0.00038466,7]
[400340515,1767393044867,-150.0,0.00038466,7]
[400340516,1767393044876,-150.0,0.00038466,7]
[400340517,1767393044886,-150.0,0.00038466,7]
[400340518,1767393044896,-150.0,0.00038466,7]
[400340519,1767393044905,-150.55633321,0.00038466,7]
[400340520,1767393044915,-150.0,0.00038466,7]
[400340521,1767393044923,-655.0,0.00038482,2]
[400340522,1767393044932,-265.29,0.000385,14]
[400340523,1767393044941,-651.0,0.00038503,7]
[400340524,1767393044950,-653.0,0.00038598,2]
[400340525,1767393044960,-300.0,0.00038726,2]
[400340526,1767393044974,-300.0,0.00038726,2]
[400340527,1767393044984,-303.85501722,0.00038726,2]
[400340528,1767393044993,-300.0,0.00038726,2]
[400340529,1767393045003,-595.88867019,0.00038726,2]
[400340530,1767393045014,-364.48459935,0.00038726,2]
[400340531,1767393045025,-300.0,0.00038726,2]
[400340532,1767393045035,-300.0,0.00038726,2]
[400340533,1767393045044,-300.0,0.00038726,2]
[400340534,1767393045054,-300.0,0.00038726,2]
[400340535,1767393045065,-300.0,0.00038726,2]
[400340536,1767393045074,-300.0,0.00038726,2]
[400340537,1767393045084,-303.47175408,0.00038726,2]
[400340538,1767393045096,-578.04560059,0.00038726,2]
[400340539,1767393045106,-362.10901698,0.00038726,2]
[400340540,1767393045115,-300.0,0.00038726,2]
[400340541,1767393045124,-300.0,0.00038726,2]
[400340542,1767393045134,-300.0,0.00038726,2]
[400340543,1767393045143,-300.0,0.00038726,2]
[400340544,1767393045153,-300.0,0.00038726,2]
[400340545,1767393045162,-615.94778257,0.00038726,2]
[400340546,1767393045171,-304.64549813,0.00038726,2]
[400340547,1767393045181,-300.0,0.00038726,2]
[400340548,1767393045191,-300.0,0.00038726,2]
[400340549,1767393045201,-300.0,0.00038726,2]
[400340550,1767393045210,-303.85501722,0.00038726,2]
[400340551,1767393045222,-300.0,0.00038726,2]
[400340552,1767393045231,-300.0,0.00038726,2]
[400340553,1767393045240,-595.88867019,0.00038726,2]
[400340554,1767393045250,-364.48459935,0.00038726,2]
[400340555,1767393045259,-300.0,0.00038726,2]
[400340556,1767393045269,-300.0,0.00038726,2]
[400340557,1767393045278,-300.0,0.00038726,2]
[400340558,1767393045287,-300.0,0.00038726,2]
[400340559,1767393045296,-300.0,0.00038726,2]
[400340561,1767393045305,-300.0,0.00038726,2]
[400340563,1767393045315,-303.47175408,0.00038726,2]
[400340565,1767393045323,-300.0,0.00038726,2]
[400340566,1767393045333,-578.04560059,0.00038726,2]
[400340567,1767393045342,-300.0,0.00038726,2]
[400340568,1767393045351,-300.0,0.00038726,2]
[400340569,1767393045361,-300.0,0.00038726,2]
[400340570,1767393045369,-300.0,0.00038726,2]
[400340571,1767393045378,-300.0,0.00038726,2]
[400340572,1767393045388,-300.0,0.00038726,2]
[400340573,1767393045398,-615.94778257,0.00038726,2]
[400340574,1767393045407,-304.64549813,0.00038726,2]
[400340575,1767393045416,-300.0,0.00038726,2]
[400340576,1767393045425,-300.0,0.00038726,2]
[400340577,1767393045434,-300.0,0.00038726,2]
[400340578,1767393045444,-151.0,0.00038897,14]
[400340579,1767393045455,-27657.16119217,0.00039,10]
[400340580,1767393045464,-515.76565625,0.00039,28]
[400340581,1767393045476,-5530.0,0.00039,5]
[400340582,1767393045486,-655.0,0.00039139,7]
[400340583,1767393045495,-2000.0,0.000392,2]
[400340584,1767393045505,-651.0,0.00039338,2]
[400340585,1767393045514,-200.0,0.00039338,2]
[400340586,1767393045524,-207.4,0.00039338,2]
[400340587,1767393045533,-215.0738,0.00039338,2]
[400340588,1767393045543,-223.0315306,0.00039338,2]
[400340589,1767393045552,-231.28369723,0.00039338,2]
[400340590,1767393045561,-239.84119403,0.00039338,2]
[400340591,1767393045571,-248.71531821,0.00039338,2]
[400340592,1767393045580,-257.91778498,0.00039338,2]
[400340593,1767393045590,-267.46074303,0.00039338,2]
[400340594,1767393045600,-277.35679052,0.00039338,2]
[400340595,1767393045610,-653.0,0.00039339,7]
[400340596,1767393045619,-500.0,0.00039425,2]
[400340597,1767393045629,-651.0,0.00039437,120]
[400340598,1767393045639,-614.14098534,0.000395,2]
[400340599,1767393045649,-653.0,0.00039567,120]
[400340600,1767393045659,-500.0,0.00039616,2]
[400340601,1767393045670,-500.0,0.00039616,30]
[400340602,1767393045679,-196.80252033,0.00039616,30]
[400340603,1767393045689,-500.0,0.00039616,30]
[400340604,1767393045698,-199.32717415,0.00039616,30]
[400340605,1767393045708,-500.0,0.00039616,30]
[400340606,1767393045719,-500.0,0.00039616,30]
[400340607,1767393045728,-150.0,0.00039616,2]
[400340608,1767393045738,-500.0,0.00039616,30]
[400340609,1767393045748,-502.0,0.00039616,30]
[400340610,1767393045757,-150.0,0.00039616,120]
[400340611,1767393045766,-150.0,0.00039616,30]
[400340612,1767393045775,-500.0,0.00039616,30]
[400340613,1767393045784,-500.0,0.00039616,30]
[400340614,1767393045793,-500.0,0.00039616,30]
[400340615,1767393045802,-500.0,0.00039616,30]
[400340616,1767393045811,-500.0,0.00039616,30]
[400340617,1767393045820,-500.0,0.00039616,30]
[400340618,1767393045829,-500.0,0.00039616,30]
[400340619,1767393045839,-500.0,0.00039616,30]
[400340620,1767393045847,-500.0,0.00039616,30]
[400340621,1767393045856,-500.0,0.00039616,30]
[400340622,1767393045865,-264.75,0.00039654,2]
[400340623,1767393045875,-500.0,0.00039753,2]
[400340624,1767393045884,-500.0,0.00039753,30]
[400340625,1767393045893,-500.0,0.00039753,30]
[400340626,1767393045902,-500.0,0.00039753,30]
[400340627,1767393045911,-500.0,0.00039753,30]
[400340628,1767393045920,-500.0,0.00039753,30]
[400340629,1767393045929,-502.0,0.00039753,30]
[400340630,1767393045938,-150.0,0.00039753,120]
[400340631,1767393045947,-651.0,0.00039778,2]
[400340632,1767393045956,-651.0,0.00039812,2]
[400340633,1767393045965,-651.0,0.00039848,7]
[400340634,1767393045975,-500.0,0.0003989,2]
[400340635,1767393045984,-500.0,0.0003989,30]
[400340636,1767393045993,-500.0,0.0003989,30]
[400340637,1767393046003,-500.0,0.0003989,30]
[400340638,1767393046014,-500.0,0.0003989,30]
[400340639,1767393046024,-500.0,0.0003989,30]
[400340640,1767393046033,-502.0,0.0003989,30]
[400340641,1767393046044,-168.71118852,0.0003989,120]
[400340642,1767393046054,-150.0,0.0003989,7]
[400340643,1767393046064,-653.0,0.00039949,2]
[400340644,1767393046073,-5000.0,0.0004,3]
[400340645,1767393046082,-387.94260457,0.0004,2]
[400340646,1767393046094,-1550.3594274,0.0004,2]
[400340647,1767393046103,-217.42374776,0.0004,2]
[400340649,1767393046112,-526.0,0.0004,2]
[400340652,1767393046121,-29256.12493401,0.0004,10]
[400340653,1767393046131,-312.85411138,0.0004,2]
[400340654,1767393046140,-15451.52177338,0.0004,30]
[400340655,1767393046150,-500.0,0.00040027,2]